fUST/lending_fUST_20250126
["ID","MTS","AMOUNT","RATE_DAILY","PERIOD"]
[350412947,1737839441721,-500.0,0.00016438,2]
[350412948,1737839441734,-500.0,0.00016438,2]
[350412949,1737839441745,-500.0,0.00016438,2]
[350412950,1737839441756,-502.0831813,0.00016438,2]
[350412951,1737839441767,-500.0,0.00016438,2]
[350412952,1737839441778,-500.0,0.00016438,2]
[350412953,1737839441788,-500.0,0.00016438,2]
[350412954,1737839441799,-500.0,0.00016438,2]
[350412955,1737839441809,-500.0,0.00016438,2]
[350412956,1737839441819,-500.0,0.00016438,2]
[350412957,1737839441831,-500.0,0.00016438,2]
[350412958,1737839441842,-500.0,0.00016438,2]
[350412959,1737839441857,-500.0,0.00016438,2]
[350412960,1737839441869,-500.0,0.00016438,2]
[350412961,1737839441883,-500.0,0.00016438,2]
[350412962,1737839441894,-151.0,0.00016438,2]
[350412963,1737839441904,-237.018823,0.00016438,2]
[350412964,1737839441917,-500.0,0.00016438,2]
[350412965,1737839441927,-500.0,0.00016438,2]
[350412966,1737839441938,-500.0,0.00016438,2]
[350412967,1737839441949,-500.0,0.00016438,2]
[350412968,1737839441961,-500.0,0.00016438,2]
[350412969,1737839441972,-151.0,0.00016438,2]
[350412970,1737839441983,-151.0,0.00016438,2]
[350412971,1737839441995,-151.0,0.00016438,2]
[350412972,1737839442007,-151.0,0.00016438,2]
[350412973,1737839442017,-151.0,0.00016438,2]
[350412974,1737839442029,-259.087492,0.00016438,2]
[350412975,1737839442040,-573.57131605,0.00016438,2]
[350412976,1737839442050,-500.0,0.00016438,2]
[350412977,1737839442061,-500.0,0.00016438,2]
[350412978,1737839442073,-500.0,0.00016438,2]
[350412979,1737839442084,-500.0,0.00016438,2]
[350412980,1737839442096,-500.0,0.00016438,2]
[350412981,1737839442108,-500.0,0.00016438,2]
[350412982,1737839442119,-500.0,0.00016438,2]
[350412983,1737839442130,-500.0,0.00016438,2]
[350412984,1737839442140,-501.41119701,0.00016438,2]
[350412985,1737839442150,-500.0,0.00016438,2]
[350412986,1737839442160,-445.99444153,0.00016438,2]
[350412987,1737839442169,-500.0,0.00016438,2]
[350412988,1737839442179,-502.81211792,0.00016438,2]
[350412989,1737839442189,-877.06,0.00016438,2]
[350412990,1737839442199,-222.31,0.00016438,2]
[350412991,1737839442210,-500.0,0.00016438,2]
[350412992,1737839442221,-500.0,0.00016438,2]
[350412993,1737839442232,-2480.98,0.00016438,2]
[350412994,1737839442244,-500.0,0.00016438,2]
[350412995,1737839442254,-500.0,0.00016438,2]
[350412996,1737839442266,-423.77604798,0.00016438,2]
[350412997,1737839442276,-500.0,0.00016438,2]
[350412998,1737839442285,-2272.69,0.00016438,2]
[350412999,1737839442295,-500.0,0.00016438,2]
[350413000,1737839442306,-500.0,0.00016438,2]
[350413001,1737839442316,-500.0,0.00016438,2]
[350413002,1737839442326,-500.0,0.00016438,2]
[350413003,1737839442337,-579.24299282,0.00016438,2]
[350413004,1737839442350,-500.0,0.00016438,2]
[350413005,1737839442361,-500.0,0.00016438,2]
[350413006,1737839442371,-500.0,0.00016438,2]
[350413007,1737839442381,-418.70930979,0.00016438,2]
[350413008,1737839442390,-503.74231084,0.00016438,2]
[350413009,1737839442400,-500.0,0.00016438,2]
[350413010,1737839442410,-500.0,0.00016438,2]
[350413011,1737839442420,-500.0,0.00016438,2]
[350413012,1737839442430,-500.0,0.00016438,2]
[350413013,1737839442440,-500.0,0.00016438,2]
[350413014,1737839442450,-500.0,0.00016438,2]
[350413015,1737839442460,-500.0,0.00016438,2]
[350413016,1737839442470,-500.0,0.00016438,2]
[350413017,1737839442481,-500.0,0.00016438,2]
[350413018,1737839442491,-500.0,0.00016438,2]
[350413019,1737839442501,-500.0,0.00016438,2]
[350413020,1737839442512,-500.0,0.00016438,2]
[350413021,1737839442522,-500.0,0.00016438,2]
[350413022,1737839442533,-500.0,0.00016438,2]
[350413023,1737839442543,-500.0,0.00016438,2]
[350413024,1737839442555,-500.0,0.00016438,2]
[350413025,1737839442565,-500.0,0.00016438,2]
[350413026,1737839442575,-500.0,0.00016438,2]
[350413027,1737839442586,-500.0,0.00016438,2]
[350413028,1737839442597,-346.55106142,0.00016438,2]
[350413029,1737839442607,-500.0,0.00016438,2]
[350413030,1737839442617,-1542.04,0.00016438,2]
[350413031,1737839442628,-500.0,0.00016438,2]
[350413032,1737839442639,-500.0,0.00016438,2]
[350413033,1737839442649,-500.0,0.00016438,2]
[350413034,1737839442659,-500.0,0.00016438,2]
[350413035,1737839442669,-500.0,0.00016438,2]
[350413036,1737839442680,-500.0,0.00016438,2]
[350413037,1737839442692,-500.0,0.00016438,2]
[350413038,1737839442702,-500.0,0.00016438,2]
[350413039,1737839442715,-501.36182163,0.00016438,2]
[350413040,1737839442726,-500.0,0.00016438,2]
[350413041,1737839442738,-500.0,0.00016438,2]
[350413042,1737839442749,-500.0,0.00016438,2]
[350413043,1737839442759,-500.0,0.00016438,2]
[350413044,1737839442769,-500.0,0.00016438,2]
[350413045,1737839442782,-500.0,0.00016438,2]
[350413046,1737839442794,-500.0,0.00016438,2]
[350413047,1737839442805,-165.10139446,0.00016438,2]
[350413048,1737839442815,-500.0,0.00016438,2]
[350413049,1737839442826,-500.0,0.00016438,2]
[350413050,1737839442836,-500.0,0.00016438,2]
[350413051,1737839442847,-500.0,0.00016438,2]
[350413052,1737839442856,-500.0,0.00016438,2]
[350413053,1737839442867,-500.8246132,0.00016438,2]
[350413054,1737839442876,-349.705675,0.00016438,2]
[350413055,1737839442887,-502.30136159,0.00016438,2]
[350413056,1737839442896,-500.0,0.00016438,2]
[350413057,1737839442906,-500.0,0.00016438,2]
[350413058,1737839442919,-501.46365161,0.00016438,2]
[350413059,1737839442929,-500.0,0.00016438,2]
[350413060,1737839442939,-500.0,0.00016438,2]
[350413061,1737839442948,-500.0,0.00016438,2]
[350413062,1737839442959,-500.0,0.00016438,2]
[350413063,1737839442970,-500.0,0.00016438,2]
[350413064,1737839442980,-501.19345255,0.00016438,2]
[350413065,1737839442990,-500.0,0.00016438,2]
[350413066,1737839443001,-500.0,0.00016438,2]
[350413067,1737839443012,-6525.38,0.00016438,2]
[350413069,1737839443022,-533.61086748,0.00016438,2]
[350413071,1737839443033,-500.0,0.00016438,2]
[350413072,1737839443043,-500.0,0.00016438,2]
[350413073,1737839443053,-500.0,0.00016438,2]
[350413075,1737839443062,-504.13357422,0.00016438,2]
[350413077,1737839443072,-500.0,0.00016438,2]
[350413078,1737839443082,-500.0,0.00016438,2]
[350413079,1737839443093,-500.0,0.00016438,2]
[350413080,1737839443105,-502.46478449,0.00016438,2]
[350413081,1737839443115,-500.0,0.00016438,2]
[350413082,1737839443126,-500.0,0.00016438,2]
[350413083,1737839443137,-500.0,0.00016438,2]
[350413084,1737839443147,-501.11381639,0.00016438,2]
[350413085,1737839443158,-461.57698612,0.00016438,2]
[350413086,1737839443168,-513.61708257,0.00016438,2]
[350413087,1737839443179,-500.0,0.00016438,2]
[350413089,1737839443189,-500.0,0.00016438,2]
[350413091,1737839443200,-500.0,0.00016438,2]
[350413092,1737839443211,-500.0,0.00016438,2]
[350413093,1737839443221,-500.0,0.00016438,2]
[350413097,1737839443395,-640.59897569,0.00016438,2]
[350413098,1737839443410,-500.0,0.00016438,2]
[350413099,1737839443420,-500.0,0.00016438,2]
[350413100,1737839443430,-500.0,0.00016438,2]
[350413101,1737839443439,-501.21424012,0.00016438,2]
[350413102,1737839443448,-500.0,0.00016438,2]
[350413103,1737839443457,-500.0,0.00016438,2]
[350413104,1737839443466,-155.13006309,0.00016438,2]
[350413105,1737839443482,-344.86993691,0.00016438,2]
[350413106,1737839443492,-500.0,0.00016438,2]
[350413107,1737839443501,-500.0,0.00016438,2]
[350413108,1737839443511,-194.46,0.00016438,2]
[350413109,1737839443520,-151.0,0.00016438,2]
[350413110,1737839443529,-151.0,0.00016438,2]
[350413111,1737839443539,-273.336488,0.00016438,2]
[350413112,1737839443548,-355.4887114,0.00016438,2]
[350413113,1737839443560,-421.79,0.00016438,2]
[350413125,1737840315845,164.6403764,0.00013699,2]
[350413135,1737840354276,400.0,0.00013973,2]
[350413136,1737840391520,2052.57960422,0.00015045,2]
[350413137,1737840391554,105.88286468,0.00015045,2]
[350413149,1737840553461,155.730337,0.00022,30]
[350413205,1737840631991,-717.51814548,0.00015197,2]
[350413207,1737840632001,-2158.4624689,0.00015506,2]
[350413209,1737840632010,-250.0,0.00015506,2]
[350413211,1737840632019,-1038.42315217,0.00015571,2]
[350413213,1737840632030,-496.825,0.00015571,2]
[350413254,1737840637696,-3642.94027108,0.00015571,2]
[350413255,1737840637708,-1291.57994205,0.00015571,2]
[350413256,1737840637718,-163.05,0.0001562,2]
[350413257,1737840637727,-300.0,0.00016307,2]
[350413258,1737840637737,-10306.23566502,0.00016308,2]
[350413259,1737840637756,-626.53963386,0.00016308,2]
[350413270,1737840643654,-2307.21038418,0.00016308,2]
[350413272,1737840643664,-173.90632164,0.00016338,2]
[350413273,1737840643674,-291.82821101,0.00016428,2]
[350413274,1737840643684,-500.0,0.00016437,2]
[350413275,1737840643693,-500.0,0.00016437,2]
[350413276,1737840643703,-500.0,0.00016437,2]
[350413277,1737840643712,-500.0,0.00016437,2]
[350413278,1737840643721,-267.85415147,0.00016437,2]
[350413279,1737840643731,-526.31174085,0.00016437,2]
[350413280,1737840643740,-504.95766051,0.00016437,2]
[350413281,1737840643749,-500.0,0.00016438,2]
[350413282,1737840643759,-500.0,0.00016438,2]
[350413283,1737840643768,-500.0,0.00016438,2]
[350413284,1737840643777,-500.0,0.00016438,2]
[350413285,1737840643786,-500.0,0.00016438,2]
[350413286,1737840643794,-500.0,0.00016438,2]
[350413287,1737840643803,-500.0,0.00016438,2]
[350413288,1737840643812,-500.0,0.00016438,2]
[350413289,1737840643822,-591.75,0.00016438,2]
[350413290,1737840643831,-500.0,0.00016438,2]
[350413291,1737840643840,-628.23,0.00016438,2]
[350413292,1737840643849,-135.01585123,0.00016438,2]
[350413293,1737840643861,-364.98414877,0.00016438,2]
[350413294,1737840643871,-500.0,0.00016438,2]
[350413295,1737840643880,-500.0,0.00016438,2]
[350413296,1737840643891,-159.52565801,0.00016438,2]
[350413297,1737840643900,-548.49764011,0.00016438,2]
[350413298,1737840643909,-500.0,0.00016438,2]
[350413299,1737840643918,-500.0,0.00016438,2]
[350413300,1737840643927,-406.14362685,0.00016438,2]
[350413301,1737840643936,-500.0,0.00016438,2]
[350413302,1737840643945,-500.0,0.00016438,2]
[350413303,1737840643955,-500.0,0.00016438,2]
[350413304,1737840643964,-501.44706547,0.00016438,2]
[350413306,1737840643973,-312.09312949,0.00016438,2]
[350413307,1737840643982,-500.0,0.00016438,2]
[350413308,1737840643991,-500.0,0.00016438,2]
[350413309,1737840644000,-500.0,0.00016438,2]
[350413310,1737840644009,-500.0,0.00016438,2]
[350413311,1737840644019,-173.38060431,0.00016438,2]
[350413312,1737840644028,-500.0,0.00016438,2]
[350413313,1737840644037,-151.321651,0.00016438,2]
[350413314,1737840644046,-521.72516624,0.00016438,2]
[350413315,1737840644055,-151.647036,0.00016438,2]
[350413316,1737840644064,-500.0,0.00016438,2]
[350413317,1737840644073,-500.0,0.00016438,2]
[350413318,1737840644083,-500.0,0.00016438,2]
[350413319,1737840644092,-500.0,0.00016438,2]
[350413320,1737840644101,-500.0,0.00016438,2]
[350413321,1737840644111,-840.52,0.00016438,2]
[350413322,1737840644120,-2377.6,0.00016438,2]
[350413323,1737840644130,-2178.0,0.00016438,2]
[350413324,1737840644139,-500.0,0.00016438,2]
[350413325,1737840644147,-500.0,0.00016438,2]
[350413326,1737840644157,-500.0,0.00016438,2]
[350413327,1737840644166,-500.0,0.00016438,2]
[350413328,1737840644175,-500.0,0.00016438,2]
[350413329,1737840644185,-500.0,0.00016438,2]
[350413330,1737840644194,-500.0,0.00016438,2]
[350413331,1737840644204,-500.0,0.00016438,2]
[350413332,1737840644216,-1498.62,0.00016438,2]
[350413333,1737840644225,-500.0,0.00016438,2]
[350413334,1737840644235,-500.0,0.00016438,2]
[350413335,1737840644244,-500.0,0.00016438,2]
[350413336,1737840644255,-500.0,0.00016438,2]
[350413337,1737840644264,-500.0,0.00016438,2]
[350413338,1737840644273,-500.0,0.00016438,2]
[350413339,1737840644282,-500.0,0.00016438,2]
[350413340,1737840644291,-270.863519,0.00016438,2]
[350413341,1737840644303,-252.28,0.00016438,2]
[350413342,1737840644314,-500.0,0.00016438,2]
[350413343,1737840644323,-500.0,0.00016438,2]
[350413344,1737840644332,-1769.47754877,0.00016438,2]
[350413365,1737841241470,400.0,0.00013973,2]
[350413366,1737841306602,239405.74829828,0.00022,30]
[350413381,1737841832091,-156.383,0.0001562,2]
[350413382,1737841832101,-154.01,0.00016032,2]
[350413383,1737841832111,-36.20701,0.00016286,2]
[350413388,1737841837906,-324.7617401,0.00016252,2]
[350413389,1737841837968,-10086.87558328,0.00016252,2]
[350413390,1737841837978,-263.79299,0.00016286,2]
[350413391,1737841837987,-500.0,0.00016337,2]
[350413392,1737841837997,-500.0,0.00016438,2]
[350413393,1737841838006,-500.0,0.00016438,2]
[350413394,1737841838016,-500.0,0.00016438,2]
[350413395,1737841838025,-510.78865784,0.00016438,2]
[350413396,1737841838035,-500.0,0.00016438,2]
[350413397,1737841838044,-500.0,0.00016438,2]
[350413398,1737841838056,-261.9995211,0.00016438,2]
[350413427,1737841840095,-238.0004789,0.00016438,2]
[350413429,1737841840105,-500.0,0.00016438,2]
[350413431,1737841840114,-500.0,0.00016438,2]
[350413432,1737841840124,-500.0,0.00016438,2]
[350413434,1737841840133,-500.0,0.00016438,2]
[350413435,1737841840144,-500.0,0.00016438,2]
[350413437,1737841840161,-267.99559046,0.00016438,2]
[350413438,1737841840170,-486.91169362,0.00016438,2]
[350413440,1737841840180,-500.0,0.00016438,2]
[350413441,1737841840189,-500.0,0.00016438,2]
[350413442,1737841840199,-500.0,0.00016438,2]
[350413443,1737841840208,-500.0,0.00016438,2]
[350413444,1737841840218,-500.0,0.00016438,2]
[350413445,1737841840227,-500.0,0.00016438,2]
[350413446,1737841840237,-500.0,0.00016438,2]
[350413447,1737841840246,-188.81309245,0.00016438,2]
[350413448,1737841840258,-311.18690755,0.00016438,2]
[350413449,1737841840267,-179.2197752,0.00016438,2]
[350413450,1737841840279,-201.4502248,0.00016438,2]
[350413451,1737841840288,-592.54,0.00016438,2]
[350413452,1737841840298,-9130.78,0.00016438,2]
[350413453,1737841840308,-500.0,0.00016438,2]
[350413454,1737841840318,-500.0,0.00016438,2]
[350413455,1737841840327,-500.0,0.00016438,2]
[350413456,1737841840337,-500.0,0.00016438,2]
[350413457,1737841840346,-2069.8341901,0.00016438,2]
[350413508,1737841842919,-208.6958099,0.00016438,2]
[350413510,1737841842929,-500.0,0.00016438,2]
[350413512,1737841842938,-101.84566833,0.00016438,2]
[350413544,1737841846042,-329.81816069,0.00016274,2]
[350413545,1737841846078,-468.31433167,0.00016438,2]
[350413546,1737841846121,-2087.25,0.00016438,2]
[350413547,1737841846158,-1436.18,0.00016438,2]
[350413548,1737841846167,-500.0,0.00016438,2]
[350413549,1737841846176,-151.0,0.00016438,2]
[350413550,1737841846186,-158.959568,0.00016438,2]
[350413551,1737841846196,-805.5,0.00016438,2]
[350413552,1737841846205,-500.0,0.00016438,2]
[350413553,1737841846214,-500.0,0.00016438,2]
[350413554,1737841846223,-500.0,0.00016438,2]
[350413555,1737841846233,-500.0,0.00016438,2]
[350413556,1737841846242,-500.0,0.00016438,2]
[350413557,1737841846261,-500.0,0.00016438,2]
[350413558,1737841846272,-500.0,0.00016438,2]
[350413559,1737841846282,-500.0,0.00016438,2]
[350413560,1737841846292,-500.0,0.00016438,2]
[350413561,1737841846301,-500.0,0.00016438,2]
[350413562,1737841846313,-277.82521954,0.00016438,2]
[350413564,1737841992860,3000.0,0.00022,30]
[350413566,1737842603388,9494.11713532,0.00014974,2]
[350413567,1737842603421,10000.0,0.00014974,2]
[350413568,1737842603454,400.98182328,0.00014974,2]
[350413569,1737842611993,400.0,0.00013973,2]
[350413570,1737842720442,1124.1251653,0.00014959,2]
[350413571,1737842729197,1124.1251653,0.00014959,2]
[350413572,1737842737990,721.1078222,0.00015054,2]
[350413573,1737842746374,721.1078222,0.00015054,2]
[350413574,1737842755049,721.1078222,0.00015054,2]
[350413575,1737842770648,721.1078222,0.00015054,2]
[350413576,1737842786427,529.42975478,0.00015054,2]
[350413598,1737843032362,-721.1078222,0.00015207,2]
[350413599,1737843032372,-1124.1251653,0.00015417,2]
[350413600,1737843032381,-227.05,0.00015616,2]
[350413602,1737843032391,-156.302,0.0001562,2]
[350413603,1737843032401,-300.0,0.00016384,2]
[350413604,1737843032411,-10411.63732339,0.00016385,2]
[350413605,1737843032420,-500.0,0.00016437,2]
[350413607,1737843032430,-500.0,0.00016437,2]
[350413609,1737843032440,-466.67368694,0.00016437,2]
[350413611,1737843032449,-266.65850845,0.00016437,2]
[350413612,1737843032458,-500.0,0.00016437,2]
[350413613,1737843032467,-406.53635999,0.00016437,2]
[350413614,1737843032476,-500.0,0.00016437,2]
[350413615,1737843032486,-500.0,0.00016437,2]
[350413616,1737843032496,-500.0,0.00016437,2]
[350413617,1737843032505,-500.0,0.00016437,2]
[350413618,1737843032515,-500.0,0.00016437,2]
[350413619,1737843032524,-500.0,0.00016437,2]
[350413620,1737843032534,-500.0,0.00016437,2]
[350413621,1737843032544,-500.0,0.00016437,2]
[350413622,1737843032553,-500.0,0.00016437,2]
[350413623,1737843032562,-500.0,0.00016437,2]
[350413624,1737843032572,-500.0,0.00016437,2]
[350413625,1737843032581,-500.0,0.00016437,2]
[350413626,1737843032591,-500.0,0.00016437,2]
[350413627,1737843032600,-500.0,0.00016437,2]
[350413628,1737843032609,-500.0,0.00016438,2]
[350413629,1737843032619,-500.0,0.00016438,2]
[350413630,1737843032629,-500.0,0.00016438,2]
[350413631,1737843032639,-500.0,0.00016438,2]
[350413632,1737843032648,-500.0,0.00016438,2]
[350413633,1737843032657,-500.0,0.00016438,2]
[350413634,1737843032667,-500.0,0.00016438,2]
[350413635,1737843032676,-500.0,0.00016438,2]
[350413636,1737843032685,-500.0,0.00016438,2]
[350413637,1737843032694,-500.0,0.00016438,2]
[350413638,1737843032704,-487.96197897,0.00016438,2]
[350413639,1737843032713,-500.0,0.00016438,2]
[350413640,1737843032722,-500.0,0.00016438,2]
[350413641,1737843032732,-500.0,0.00016438,2]
[350413642,1737843032741,-644.22,0.00016438,2]
[350413643,1737843032751,-8750.33,0.00016438,2]
[350413644,1737843032760,-500.0,0.00016438,2]
[350413645,1737843032769,-500.0,0.00016438,2]
[350413646,1737843032779,-2000.28,0.00016438,2]
[350413647,1737843032788,-500.0,0.00016438,2]
[350413648,1737843032798,-500.0,0.00016438,2]
[350413649,1737843032807,-2183.6,0.00016438,2]
[350413650,1737843032817,-771.93,0.00016438,2]
[350413651,1737843032827,-355.26203974,0.00016438,2]
[350413652,1737843032836,-500.0,0.00016438,2]
[350413653,1737843032845,-1061.32775275,0.00016438,2]
[350413692,1737843038209,-500.0,0.00016437,2]
[350413694,1737843038218,-500.0,0.00016437,2]
[350413696,1737843038228,-500.0,0.00016437,2]
[350413698,1737843038237,-500.0,0.00016437,2]
[350413700,1737843038246,-500.0,0.00016437,2]
[350413702,1737843038255,-377.61732461,0.00016437,2]
[350413704,1737843038264,-500.0,0.00016437,2]
[350413705,1737843038273,-500.0,0.00016437,2]
[350413706,1737843038282,-500.0,0.00016437,2]
[350413707,1737843038291,-500.0,0.00016437,2]
[350413708,1737843038300,-500.0,0.00016437,2]
[350413709,1737843038309,-500.0,0.00016437,2]
[350413710,1737843038318,-500.0,0.00016437,2]
[350413711,1737843038327,-42.28834509,0.00016437,2]
[350413712,1737843038338,-258.61640533,0.00016437,2]
[350413713,1737843038350,-199.09524958,0.00016437,2]
[350413714,1737843038359,-500.0,0.00016437,2]
[350413715,1737843038368,-500.0,0.00016437,2]
[350413716,1737843038378,-107.6574182,0.00016437,2]
[350413767,1737843040394,-392.3425818,0.00016437,2]
[350413768,1737843040403,-500.0,0.00016437,2]
[350413769,1737843040412,-500.0,0.00016437,2]
[350413770,1737843040422,-500.0,0.00016437,2]
[350413771,1737843040431,-500.0,0.00016437,2]
[350413772,1737843040440,-500.0,0.00016437,2]
[350413773,1737843040450,-500.0,0.00016437,2]
[350413774,1737843040460,-500.0,0.00016437,2]
[350413775,1737843040469,-500.0,0.00016437,2]
[350413776,1737843040478,-500.0,0.00016437,2]
[350413777,1737843040487,-500.0,0.00016437,2]
[350413778,1737843040497,-500.0,0.00016437,2]
[350413779,1737843040506,-500.0,0.00016437,2]
[350413780,1737843040516,-500.0,0.00016437,2]
[350413781,1737843040525,-500.0,0.00016437,2]
[350413782,1737843040534,-500.0,0.00016437,2]
[350413783,1737843040544,-500.0,0.00016437,2]
[350413784,1737843040553,-500.0,0.00016437,2]
[350413785,1737843040562,-382.51224725,0.00016438,2]
[350413786,1737843040571,-544.09004501,0.00016438,2]
[350413787,1737843040580,-500.0,0.00016438,2]
[350413788,1737843040590,-505.85664522,0.00016438,2]
[350413789,1737843040599,-500.0,0.00016438,2]
[350413790,1737843040608,-500.0,0.00016438,2]
[350413791,1737843040617,-500.0,0.00016438,2]
[350413792,1737843040627,-500.0,0.00016438,2]
[350413793,1737843040636,-500.0,0.00016438,2]
[350413794,1737843040646,-500.0,0.00016438,2]
[350413795,1737843040655,-500.0,0.00016438,2]
[350413796,1737843040665,-500.0,0.00016438,2]
[350413797,1737843040674,-500.0,0.00016438,2]
[350413798,1737843040683,-500.0,0.00016438,2]
[350413799,1737843040692,-500.0,0.00016438,2]
[350413800,1737843040701,-500.0,0.00016438,2]
[350413801,1737843040710,-500.0,0.00016438,2]
[350413802,1737843040719,-500.0,0.00016438,2]
[350413803,1737843040728,-500.0,0.00016438,2]
[350413804,1737843040737,-500.0,0.00016438,2]
[350413805,1737843040746,-500.0,0.00016438,2]
[350413806,1737843040755,-500.0,0.00016438,2]
[350413807,1737843040764,-500.0,0.00016438,2]
[350413808,1737843040773,-500.0,0.00016438,2]
[350413809,1737843040784,-500.54404709,0.00016438,2]
[350413810,1737843040794,-503.72189122,0.00016438,2]
[350413811,1737843040804,-151.0,0.00016438,2]
[350413812,1737843040814,-500.0,0.00016438,2]
[350413813,1737843040823,-500.0,0.00016438,2]
[350413814,1737843040834,-500.0,0.00016438,2]
[350413815,1737843040846,-567.1109368,0.00016438,2]
[350413816,1737843040856,-334.19716381,0.00016438,2]
[350413817,1737843040864,-503.8694491,0.00016438,2]
[350413818,1737843040874,-500.0,0.00016438,2]
[350413819,1737843040883,-500.0,0.00016438,2]
[350413820,1737843040892,-500.0,0.00016438,2]
[350413821,1737843040902,-500.0,0.00016438,2]
[350413822,1737843040911,-500.0,0.00016438,2]
[350413823,1737843040921,-500.0,0.00016438,2]
[350413824,1737843040931,-500.0,0.00016438,2]
[350413825,1737843040940,-500.0,0.00016438,2]
[350413826,1737843040950,-500.0,0.00016438,2]
[350413827,1737843040959,-228.01378121,0.00016438,2]
[350413828,1737843040968,-500.0,0.00016438,2]
[350413829,1737843040978,-500.0,0.00016438,2]
[350413830,1737843040987,-5942.54,0.00016438,2]
[350413831,1737843040996,-1938.61,0.00016438,2]
[350413832,1737843041005,-500.0,0.00016438,2]
[350413833,1737843041015,-500.0,0.00016438,2]
[350413834,1737843041024,-500.0,0.00016438,2]
[350413835,1737843041032,-504.52773476,0.00016438,2]
[350413836,1737843041041,-500.0,0.00016438,2]
[350413837,1737843041050,-754.43,0.00016438,2]
[350413838,1737843041060,-500.0,0.00016438,2]
[350413839,1737843041069,-508.58993395,0.00016438,2]
[350413840,1737843041078,-500.0,0.00016438,2]
[350413841,1737843041087,-2009.79152759,0.00016438,2]
[350413842,1737843041096,-500.0,0.00016438,2]
[350413843,1737843041106,-500.0,0.00016438,2]
[350413844,1737843041115,-500.0,0.00016438,2]
[350413845,1737843041124,-500.0,0.00016438,2]
[350413846,1737843041136,-500.0,0.00016438,2]
[350413847,1737843041145,-500.0,0.00016438,2]
[350413848,1737843041154,-500.0,0.00016438,2]
[350413849,1737843041164,-500.0,0.00016438,2]
[350413850,1737843041173,-500.0,0.00016438,2]
[350413851,1737843041182,-500.0,0.00016438,2]
[350413852,1737843041191,-1049.26,0.00016438,2]
[350413853,1737843041200,-500.0,0.00016438,2]
[350413854,1737843041209,-500.0,0.00016438,2]
[350413855,1737843041218,-500.0,0.00016438,2]
[350413856,1737843041227,-500.0,0.00016438,2]
[350413857,1737843041236,-500.0,0.00016438,2]
[350413858,1737843041245,-540.92,0.00016438,2]
[350413859,1737843041254,-501.68967736,0.00016438,2]
[350413860,1737843041264,-500.0,0.00016438,2]
[350413861,1737843041273,-881.36,0.00016438,2]
[350413862,1737843041282,-500.0,0.00016438,2]
[350413863,1737843041291,-500.0,0.00016438,2]
[350413864,1737843041300,-500.0,0.00016438,2]
[350413865,1737843041310,-3786.45,0.00016438,2]
[350413866,1737843041319,-500.0,0.00016438,2]
[350413867,1737843041328,-500.0,0.00016438,2]
[350413868,1737843041337,-500.0,0.00016438,2]
[350413869,1737843041346,-722.13,0.00016438,2]
[350413870,1737843041355,-500.0,0.00016438,2]
[350413871,1737843041364,-500.0,0.00016438,2]
[350413872,1737843041373,-500.0,0.00016438,2]